[Event "44th Chess Olympiad Open 2022"]
[Site "Chennai"]
[Date "2022.08.09"]
[Round "11.34"]
[White "Volodin, Aleksandr"]
[Black "Adebayo, Adegboyega"]
[Result "1-0"]
[ECO "E01"]
[WhiteElo "2454"]
[BlackElo "2313"]
[Annotator "RC"]
[PlyCount "113"]
[EventDate "2022.07.29"]
[EventType "team-tourn"]
[EventCountry "IND"]
[SourceTitle "playchess.com"]
[Source "ChessBase"]
[SourceQuality "1"]
[WhiteTeam "Estonia"]
[BlackTeam "Nigeria"]
[WhiteTeamCountry "EST"]
[BlackTeamCountry "NGR"]
[TimeControl "40/5400+30:1800+30"]

1. d4 {[%emt 0:00:03]} d5 {[%emt 0:00:14]} 2. c4 {[%emt 0:00:05]} c6 {[%emt 0:00:09]} 3. Nf3 {[%emt 0:00:03]} e6 {[%emt 0:00:11]} 4. g3 {[%emt 0:00:30]} Nf6 {[%emt 0:00:14]} 5. Qc2 {[%emt 0:00:08]} Nbd7 {[%emt 0:00:12]} 6. Bg2 {[%emt 0:00:04]} b6 {[%emt 0:00:09]} 7. O-O {[%emt 0:01:08]} Bb7 {[%emt 0:00:13]} 8. Nbd2 {[%emt 0:00:42]} c5 {[%emt 0:00:26]} 9. cxd5 {[%emt 0:00:08]} Nxd5 {[%emt 0:00:09]} 10. a3 {[%emt 0:08:05]} Rc8 {[%emt 0:01:14]} 11. e4 {[%emt 0:01:48]} cxd4 {[%emt 0:01:30]} 12. Qa4 {[%emt 0:00:05]} N5f6 {[%emt 0:00:39]} 13. Nxd4 {[%emt 0:02:04]} Be7 {[%emt 0:02:18]} 14. b4 {[%emt 0:02:13]} a6 {[%emt 0:04:28]} 15. Bb2 {[%emt 0:07:04]} O-O {[%emt 0:02:03]} 16. Rad1 {[%emt 0:01:07]} b5 {[%emt 0:08:50]} 17. Qb3 {[%emt 0:00:06]} Qb6 {[%emt 0:00:14]} 18. Ne2 {[%emt 0:00:38]} Rfd8 {[%emt 0:05:41]} 19. Bd4 {[%emt 0:06:44]} Qc7 {[%emt 0:00:16]} 20. Rc1 {[%emt 0:00:31]} Qb8 {[%emt 0:00:15]} 21. Qb2 {[%emt 0:00:29]} e5 {[%emt 0:07:56]} 22. Bc3 {[%emt 0:00:23]} Nb6 {[%emt 0:01:20]} 23. Qa1 {[%emt 0:02:09]} Bd6 {[%emt 0:01:05]} 24. Bb2 {[%emt 0:07:10]} Na4 {[%emt 0:05:29]} 25. Nc3 {[%emt 0:03:49]} Nxb2 {[%emt 0:00:29]} 26. Qxb2 {[%emt 0:00:02]} Bc7 {[%emt 0:00:10]} 27. Bh3 {[%emt 0:01:55]} Nd7 {[%emt 0:01:26]} 28. Nd5 {[%emt 0:04:52]} Bxd5 {[%emt 0:00:30]} 29. exd5 {[%emt 0:00:07]} Bb6 {[%emt 0:02:14]} 30. Ne4 {[%emt 0:01:21]} Bd4 {[%emt 0:02:55]} 31. Qe2 {[%emt 0:01:39]} Rxc1 {[%emt 0:02:08]} 32. Rxc1 {[%emt 0:00:02]} Nb6 {[%emt 0:01:47]} 33. d6 {[%emt 0:02:46]} g6 {[%emt 0:08:52]} 34. Rc6 {[%emt 0:12:48]} f5 {[%emt 0:16:24]} 35. Qa2+ {[%emt 0:00:18]} Nc4 {[%emt 0:08:30]} 36. Nd2 {[%emt 0:01:07]} Rxd6 {[%emt 0:01:18]} 37. Nxc4 {[%emt 0:00:09]} bxc4 {[%emt 0:00:12]} 38. Qxc4+ {[%emt 0:00:06]} Kg7 {[%emt 0:00:21]} 39. Rc7+ {[%emt 0:00:11]} Kh6 {[%emt 0:02:55]} 40. Qf7 {[%emt 0:05:22]} Qh8 {[%emt 0:00:26]} 41. Qe7 {[%emt 0:32:19]} Rf6 {[%emt 0:31:13]} 42. Bf1 {[%emt 0:01:16]} g5 {[%emt 0:09:54]} 43. Rd7 {[%emt 0:01:07]} Rg6 {[%emt 0:00:00]} 44. Bc4 {[%emt 0:00:00]} Qg7 {[%emt 0:00:00]} 45. Bf7 {[%emt 0:00:00]} Rf6 {[%emt 0:00:00]} 46. Rd6 {[%emt 0:01:55]} e4 {[%emt 0:00:00]} 47. Rxd4 {[%emt 0:01:11]} Rxf7 {[%emt 0:00:00]} 48. Rd6+ {[%emt 0:00:06]} Kh5 {[%emt 0:00:00]} 49. Qe6 {[%emt 0:00:52]} Qf8 {[%emt 0:00:00]} 50. h3 {[%emt 0:01:00]} g4 {[%emt 0:00:00]} 51. h4 {[%emt 0:01:20]} Re7 {[%emt 0:00:00]} 52. Qc4 {[%emt 0:05:05]} Qg7 {[%emt 0:00:46]} 53. Kg2 {[%emt 0:00:50]} Re5 {[%emt 0:01:25]} 54. Qd4 {[%emt 0:01:20]} Re7 {[%emt 0:04:20]} 55. Qe3 {[%emt 0:00:36]} h6 {[%emt 0:01:36]} 56. Qf4 {[%emt 0:00:28]} Qf8 {[%emt 0:01:10]} 57. Rxh6+ {[%emt 0:00:18]} 1-0

[Event "44th Chess Olympiad Open 2022"]
[Site "Chennai"]
[Date "2022.08.09"]
[Round "11.34"]
[White "Kiik, Kalle"]
[Black "Okeke Issac"]
[Result "1/2-1/2"]
[ECO "B31"]
[WhiteElo "2365"]
[BlackElo "2204"]
[Annotator "RC"]
[PlyCount "209"]
[EventDate "2022.07.29"]
[EventType "team-tourn"]
[EventCountry "IND"]
[SourceTitle "playchess.com"]
[Source "ChessBase"]
[SourceQuality "1"]
[WhiteTeam "Estonia"]
[BlackTeam "Nigeria"]
[WhiteTeamCountry "EST"]
[BlackTeamCountry "NGR"]
[TimeControl "40/5400+30:1800+30"]

1. e4 {[%emt 0:00:25]} c5 {[%emt 0:00:10]} 2. Nf3 {[%emt 0:00:10]} Nc6 {[%emt 0:00:05]} 3. Bb5 {[%emt 0:03:35]} g6 {[%emt 0:00:06]} 4. O-O {[%emt 0:00:28]} Bg7 {[%emt 0:00:11]} 5. Re1 {[%emt 0:00:43]} Nf6 {[%emt 0:05:25]} 6. e5 {[%emt 0:07:25]} Nd5 {[%emt 0:03:31]} 7. Nc3 {[%emt 0:00:20]} Nc7 {[%emt 0:01:15]} 8. Bxc6 {[%emt 0:02:11]} dxc6 {[%emt 0:01:56]} 9. Ne4 {[%emt 0:06:31]} Ne6 {[%emt 0:01:14]} 10. d3 {[%emt 0:01:58]} O-O {[%emt 0:00:44]} 11. a4 {[%emt 0:03:15]} a5 {[%emt 0:08:37]} 12. Be3 {[%emt 0:02:09]} b6 {[%emt 0:02:01]} 13. Qd2 {[%emt 0:00:31]} Re8 {[%emt 0:05:22]} 14. Bh6 {[%emt 0:01:37]} Bh8 {[%emt 0:00:30]} 15. c3 {[%emt 0:04:01]} Ba6 {[%emt 0:11:40]} 16. Rad1 {[%emt 0:00:51]} Qd5 {[%emt 0:00:15]} 17. c4 {[%emt 0:04:08]} Qd7 {[%emt 0:08:54]} 18. Neg5 {[%emt 0:00:45]} Rad8 {[%emt 0:04:05]} 19. b3 {[%emt 0:04:20]} Bc8 {[%emt 0:01:52]} 20. Re4 {[%emt 0:08:57]} Qc7 {[%emt 0:17:08]} 21. Nxe6 {[%emt 0:14:21]} Bxe6 {[%emt 0:00:18]} 22. Qg5 {[%emt 0:00:24]} Bf5 {[%emt 0:03:22]} 23. Re3 {[%emt 0:02:25]} Qd7 {[%emt 0:14:05]} 24. h3 {[%emt 0:08:04]} Be6 {[%emt 0:03:41]} 25. Qh4 {[%emt 0:01:13]} f6 {[%emt 0:01:03]} 26. Rde1 {[%emt 0:01:33]} Bg7 {[%emt 0:02:20]} 27. Bxg7 {[%emt 0:05:24]} Kxg7 {[%emt 0:00:02]} 28. Qg3 {[%emt 0:00:36]} f5 {[%emt 0:02:37]} 29. Qf4 {[%emt 0:00:40]} h6 {[%emt 0:01:05]} 30. h4 {[%emt 0:00:05]} Kh7 {[%emt 0:00:32]} 31. g3 {[%emt 0:03:25]} Qc7 {[%emt 0:01:14]} 32. Rd1 {[%emt 0:01:09]} Rd7 {[%emt 0:00:32]} 33. Kf1 {[%emt 0:02:21]} Red8 {[%emt 0:00:30]} 34. Ke2 {[%emt 0:01:04]} b5 {[%emt 0:00:35]} 35. Rh1 {[%emt 0:01:08]} bxc4 {[%emt 0:00:30]} 36. Ng5+ {[%emt 0:02:22]} hxg5 {[%emt 0:00:01]} 37. hxg5+ {[%emt 0:00:05]} Kg7 {[%emt 0:00:39]} 38. Qh4 {[%emt 0:00:05]} Rg8 {[%emt 0:00:35]} 39. dxc4 {[%emt 0:03:01]} Rdd8 {[%emt 0:00:38]} 40. Qh7+ {[%emt 0:00:57]} Kf8 {[%emt 0:00:01]} 41. Rd1 {[%emt 0:32:37]} Rd4 {[%emt 0:30:24]} 42. f4 {[%emt 0:00:44]} Qd7 {[%emt 0:00:00]} 43. Red3 {[%emt 0:00:00]} Rg7 {[%emt 0:00:00]} 44. Qh2 {[%emt 0:00:00]} Kg8 {[%emt 0:00:00]} 45. Qf2 {[%emt 0:00:00]} Qb7 {[%emt 0:00:00]} 46. Kf3 {[%emt 0:00:00]} Rh7 {[%emt 0:00:00]} 47. Qe1 {[%emt 0:00:00]} Rxd3+ {[%emt 0:00:00]} 48. Rxd3 {[%emt 0:00:00]} Qb4 {[%emt 0:00:00]} 49. Rc3 {[%emt 0:00:00]} Rh1 {[%emt 0:00:00]} 50. Qd2 {[%emt 0:00:00]} Rd1 {[%emt 0:00:00]} 51. Qxd1 {[%emt 0:00:00]} Qxc3+ {[%emt 0:00:00]} 52. Kg2 {[%emt 0:00:00]} Qd4 {[%emt 0:00:00]} 53. Qf3 {[%emt 0:00:00]} Qe4 {[%emt 0:00:00]} 54. Kf2 {[%emt 0:00:00]} Kf7 {[%emt 0:00:00]} 55. Qe3 {[%emt 0:00:00]} Qd4 {[%emt 0:00:00]} 56. Ke2 {[%emt 0:00:00]} Ke8 {[%emt 0:02:39]} 57. Qd3 {[%emt 0:00:09]} Qe4+ {[%emt 0:01:33]} 58. Kd2 {[%emt 0:00:10]} Qg2+ {[%emt 0:00:25]} 59. Kc1 {[%emt 0:00:38]} Qg1+ {[%emt 0:01:33]} 60. Kc2 {[%emt 0:02:01]} Qf2+ {[%emt 0:01:36]} 61. Kc1 {[%emt 0:00:43]} Kf7 {[%emt 0:01:02]} 62. Qc3 {[%emt 0:00:26]} Qg2 {[%emt 0:02:22]} 63. Kb1 {[%emt 0:01:33]} Qe4+ {[%emt 0:00:19]} 64. Kc1 {[%emt 0:00:43]} Qg2 {[%emt 0:00:37]} 65. Kb1 {[%emt 0:00:08]} Qf1+ {[%emt 0:00:07]} 66. Kc2 {[%emt 0:00:23]} Qe2+ {[%emt 0:00:11]} 67. Kc1 {[%emt 0:00:11]} Qf2 {[%emt 0:00:43]} 68. Kb1 {[%emt 0:00:10]} Qd4 {[%emt 0:00:15]} 69. Kc2 {[%emt 0:00:20]} Qd8 {[%emt 0:00:40]} 70. Kc1 {[%emt 0:00:14]} Qb6 {[%emt 0:00:27]} 71. Kc2 {[%emt 0:00:16]} Qb4 {[%emt 0:00:10]} 72. Qd3 {[%emt 0:01:39]} Ke8 {[%emt 0:00:40]} 73. Qc3 {[%emt 0:01:00]} Kd7 {[%emt 0:00:55]} 74. Qd3+ {[%emt 0:00:07]} Kc7 {[%emt 0:00:09]} 75. Kb2 {[%emt 0:00:32]} Qb8 {[%emt 0:00:53]} 76. Qc3 {[%emt 0:00:17]} Kb6 {[%emt 0:00:07]} 77. Qd3 {[%emt 0:00:17]} Qc8 {[%emt 0:00:10]} 78. Kc2 {[%emt 0:00:25]} Qh8 {[%emt 0:00:29]} 79. Kb2 {[%emt 0:00:37]} Qh2+ {[%emt 0:00:22]} 80. Kc1 {[%emt 0:00:22]} Qg1+ {[%emt 0:00:13]} 81. Kd2 {[%emt 0:01:52]} Qf2+ {[%emt 0:00:22]} 82. Kc1 {[%emt 0:00:26]} Qe1+ {[%emt 0:00:16]} 83. Kc2 {[%emt 0:00:18]} Qe4 {[%emt 0:00:14]} 84. Kd2 {[%emt 0:00:24]} Qd4 {[%emt 0:01:56]} 85. Kc2 {[%emt 0:00:12]} Kc7 {[%emt 0:00:44]} 86. Qc3 {[%emt 0:00:26]} Kb6 {[%emt 0:00:43]} 87. Kb2 {[%emt 0:01:06]} Qd1 {[%emt 0:00:11]} 88. Ka2 {[%emt 0:00:56]} Bd5 {[%emt 0:00:31]} 89. cxd5 {[%emt 0:00:56]} cxd5 {[%emt 0:00:02]} 90. e6 {[%emt 0:01:13]} Qe2+ {[%emt 0:00:09]} 91. Kb1 {[%emt 0:00:47]} d4 {[%emt 0:00:54]} 92. Qc4 {[%emt 0:00:14]} Qxc4 {[%emt 0:00:16]} 93. bxc4 {[%emt 0:00:04]} Kc6 {[%emt 0:00:06]} 94. Kc2 {[%emt 0:00:06]} Kd6 {[%emt 0:00:20]} 95. Kd3 {[%emt 0:00:04]} Kxe6 {[%emt 0:00:07]} 96. Kd2 {[%emt 0:00:05]} Kd6 {[%emt 0:00:19]} 97. Kd3 {[%emt 0:00:06]} Ke6 {[%emt 0:00:20]} 98. Kd2 {[%emt 0:00:05]} Kf7 {[%emt 0:00:04]} 99. Kd3 {[%emt 0:00:09]} e5 {[%emt 0:00:04]} 100. Kd2 {[%emt 0:00:05]} Ke7 {[%emt 0:00:27]} 101. Kd3 {[%emt 0:00:12]} Kd7 {[%emt 0:00:03]} 102. Kd2 {[%emt 0:00:11]} Ke6 {[%emt 0:00:00]} 103. Kd3 {[%emt 0:00:08]} e4+ {[%emt 0:00:29]} 104. Kd2 {[%emt 0:00:08]} Kd6 {[%emt 0:01:46]} 105. Ke2 {[%emt 0:00:07]} 1/2-1/2

[Event "44th Chess Olympiad Open 2022"]
[Site "Chennai"]
[Date "2022.08.09"]
[Round "11.34"]
[White "Kigigha, Bomo"]
[Black "Chukavin, Kirill"]
[Result "0-1"]
[ECO "A14"]
[WhiteElo "2251"]
[BlackElo "2418"]
[Annotator "RC"]
[PlyCount "72"]
[EventDate "2022.07.29"]
[EventType "team-tourn"]
[EventCountry "IND"]
[SourceTitle "playchess.com"]
[Source "ChessBase"]
[SourceQuality "1"]
[WhiteTeam "Nigeria"]
[BlackTeam "Estonia"]
[WhiteTeamCountry "NGR"]
[BlackTeamCountry "EST"]
[TimeControl "40/5400+30:1800+30"]

1. c4 {[%emt 0:00:04]} e6 {[%emt 0:00:28]} 2. Nf3 {[%emt 0:00:05]} Nf6 {[%emt 0:00:26]} 3. g3 {[%emt 0:00:04]} d5 {[%emt 0:00:39]} 4. Bg2 {[%emt 0:00:05]} Be7 {[%emt 0:06:31]} 5. O-O {[%emt 0:00:06]} O-O {[%emt 0:01:33]} 6. b3 {[%emt 0:00:23]} c5 {[%emt 0:01:03]} 7. Bb2 {[%emt 0:01:13]} Nc6 {[%emt 0:02:17]} 8. e3 {[%emt 0:03:05]} d4 {[%emt 0:01:05]} 9. exd4 {[%emt 0:01:38]} cxd4 {[%emt 0:00:07]} 10. Re1 {[%emt 0:00:10]} Bc5 {[%emt 0:03:05]} 11. d3 {[%emt 0:02:52]} Re8 {[%emt 0:07:10]} 12. Na3 {[%emt 0:02:36]} e5 {[%emt 0:01:50]} 13. Nc2 {[%emt 0:00:45]} a5 {[%emt 0:14:33]} 14. a3 {[%emt 0:13:01]} Qd6 {[%emt 0:12:12]} 15. Ng5 {[%emt 0:10:46]} Bf5 {[%emt 0:03:26]} 16. Qd2 {[%emt 0:04:45]} h6 {[%emt 0:00:43]} 17. Ne4 {[%emt 0:00:12]} Nxe4 {[%emt 0:00:28]} 18. dxe4 {[%emt 0:02:26]} Be6 {[%emt 0:01:05]} 19. Qd3 {[%emt 0:00:58]} Reb8 {[%emt 0:05:33]} 20. Red1 {[%emt 0:03:29]} Qe7 {[%emt 0:06:46]} 21. Rdb1 {[%emt 0:05:41]} Bd6 {[%emt 0:08:51]} 22. Bc1 {[%emt 0:01:18]} f6 {[%emt 0:01:11]} 23. Bd2 {[%emt 0:01:05]} a4 {[%emt 0:04:56]} 24. b4 {[%emt 0:08:09]} Qf7 {[%emt 0:00:10]} 25. Bf1 {[%emt 0:00:18]} f5 {[%emt 0:18:34]} 26. f3 {[%emt 0:22:01]} Rf8 {[%emt 0:00:00]} 27. b5 {[%emt 0:02:36]} fxe4 {[%emt 0:00:00]} 28. fxe4 {[%emt 0:00:14]} Qf2+ {[%emt 0:00:00]} 29. Kh1 {[%emt 0:04:43]} Bg4 {[%emt 0:00:00]} 30. Ne1 {[%emt 0:00:44]} Qxf1+ {[%emt 0:00:00]} 31. Qxf1 {[%emt 0:00:04]} Rxf1+ {[%emt 0:00:00]} 32. Kg2 {[%emt 0:00:59]} Raf8 {[%emt 0:00:00]} 33. Nd3 {[%emt 0:01:26]} Rxb1 {[%emt 0:00:00]} 34. Rxb1 {[%emt 0:00:03]} Bf3+ {[%emt 0:00:00]} 35. Kg1 {[%emt 0:00:06]} Bxe4 {[%emt 0:00:00]} 36. bxc6 {[%emt 0:00:10]} bxc6 {[%emt 0:00:00]} 0-1

[Event "44th Chess Olympiad Open 2022"]
[Site "Chennai"]
[Date "2022.08.09"]
[Round "11.34"]
[White "Akinseye, Abiola"]
[Black "Shishkov, Andrei"]
[Result "1/2-1/2"]
[ECO "B12"]
[WhiteElo "2214"]
[BlackElo "2366"]
[Annotator "RC"]
[PlyCount "67"]
[EventDate "2022.07.29"]
[EventType "team-tourn"]
[EventCountry "IND"]
[SourceTitle "playchess.com"]
[Source "ChessBase"]
[SourceQuality "1"]
[WhiteTeam "Nigeria"]
[BlackTeam "Estonia"]
[WhiteTeamCountry "NGR"]
[BlackTeamCountry "EST"]
[TimeControl "40/5400+30:1800+30"]

1. e4 {[%emt 0:00:12]} c6 {[%emt 0:00:03]} 2. d4 {[%emt 0:00:07]} d5 {[%emt 0:00:02]} 3. e5 {[%emt 0:01:28]} c5 {[%emt 0:00:04]} 4. c3 {[%emt 0:00:16]} Nc6 {[%emt 0:00:07]} 5. Nf3 {[%emt 0:01:55]} cxd4 {[%emt 0:00:15]} 6. cxd4 {[%emt 0:00:17]} Bg4 {[%emt 0:00:05]} 7. Nc3 {[%emt 0:02:25]} e6 {[%emt 0:02:28]} 8. Be2 {[%emt 0:04:36]} Nge7 {[%emt 0:16:29]} 9. O-O {[%emt 0:02:34]} Nf5 {[%emt 0:00:26]} 10. Be3 {[%emt 0:01:13]} Bxf3 {[%emt 0:10:03]} 11. Bxf3 {[%emt 0:00:14]} Be7 {[%emt 0:00:07]} 12. Bg4 {[%emt 0:04:03]} Nxe3 {[%emt 0:00:46]} 13. fxe3 {[%emt 0:00:08]} O-O {[%emt 0:00:08]} 14. Rf3 {[%emt 0:06:58]} Qb6 {[%emt 0:09:18]} 15. Na4 {[%emt 0:04:24]} Qa5 {[%emt 0:06:24]} 16. a3 {[%emt 0:02:49]} b5 {[%emt 0:02:56]} 17. Nc3 {[%emt 0:00:35]} b4 {[%emt 0:00:40]} 18. Ne2 {[%emt 0:02:39]} bxa3 {[%emt 0:02:02]} 19. bxa3 {[%emt 0:00:09]} Rab8 {[%emt 0:07:27]} 20. Nf4 {[%emt 0:03:40]} Rb6 {[%emt 0:12:04]} 21. Nxe6 {[%emt 0:04:13]} Nxe5 {[%emt 0:12:39]} 22. dxe5 {[%emt 0:03:01]} fxe6 {[%emt 0:00:02]} 23. Rxf8+ {[%emt 0:00:37]} Bxf8 {[%emt 0:00:02]} 24. Qf3 {[%emt 0:01:30]} Qa4 {[%emt 0:00:51]} 25. Rf1 {[%emt 0:07:47]} Qe8 {[%emt 0:00:06]} 26. a4 {[%emt 0:03:20]} a5 {[%emt 0:01:00]} 27. h4 {[%emt 0:03:33]} Bc5 {[%emt 0:03:45]} 28. Kh1 {[%emt 0:04:11]} Qf8 {[%emt 0:04:13]} 29. Qe2 {[%emt 0:06:32]} Qe7 {[%emt 0:00:07]} 30. g3 {[%emt 0:00:36]} Qb7 {[%emt 0:08:45]} 31. Qf3 {[%emt 0:00:52]} Qe7 {[%emt 0:00:17]} 32. Qe2 {[%emt 0:05:46]} Qb7 {[%emt 0:00:05]} 33. Qf3 {[%emt 0:00:47]} Qe7 {[%emt 0:00:06]} 34. Qe2 {[%emt 0:00:44]} 1/2-1/2

[Event "44th Chess Olympiad Open 2022"]
[Site "Chennai"]
[Date "2022.08.09"]
[Round "11.35"]
[White "De La Riva Aguado, Oscar"]
[Black "Kwon, Sehyun"]
[Result "1-0"]
[ECO "C26"]
[WhiteElo "2424"]
[BlackElo "2225"]
[Annotator "RC"]
[PlyCount "145"]
[EventDate "2022.07.29"]
[EventType "team-tourn"]
[EventCountry "IND"]
[SourceTitle "playchess.com"]
[Source "ChessBase"]
[SourceQuality "1"]
[WhiteTeam "Andorra"]
[BlackTeam "Korea"]
[WhiteTeamCountry "AND"]
[BlackTeamCountry "KOR"]
[TimeControl "40/5400+30:1800+30"]

1. e4 {[%emt 0:00:06]} e5 {[%emt 0:00:51]} 2. Nc3 {[%emt 0:00:55]} Nf6 {[%emt 0:00:45]} 3. g3 {[%emt 0:00:34]} c6 {[%emt 0:02:57]} 4. d4 {[%emt 0:01:43]} Bb4 {[%emt 0:02:49]} 5. Bg2 {[%emt 0:03:59]} d5 {[%emt 0:14:08]} 6. exd5 {[%emt 0:07:30]} Nxd5 {[%emt 0:01:24]} 7. Bd2 {[%emt 0:21:50]} Bxc3 {[%emt 0:10:43]} 8. bxc3 {[%emt 0:02:19]} exd4 {[%emt 0:00:56]} 9. cxd4 {[%emt 0:00:20]} O-O {[%emt 0:01:13]} 10. Ne2 {[%emt 0:01:14]} Re8 {[%emt 0:02:00]} 11. O-O {[%emt 0:03:12]} Bg4 {[%emt 0:04:24]} 12. Re1 {[%emt 0:00:05]} Nd7 {[%emt 0:01:09]} 13. h3 {[%emt 0:01:13]} Bf5 {[%emt 0:07:04]} 14. c4 {[%emt 0:05:58]} N5b6 {[%emt 0:01:27]} 15. Rc1 {[%emt 0:01:57]} Be6 {[%emt 0:03:31]} 16. Ba5 {[%emt 0:11:28]} Qg5 {[%emt 0:05:40]} 17. d5 {[%emt 0:00:47]} cxd5 {[%emt 0:02:53]} 18. f4 {[%emt 0:05:17]} Qh6 {[%emt 0:03:36]} 19. g4 {[%emt 0:13:38]} dxc4 {[%emt 0:12:30]} 20. Qd4 {[%emt 0:03:44]} Rad8 {[%emt 0:03:00]} 21. Rcd1 {[%emt 0:02:06]} Qf6 {[%emt 0:11:38]} 22. f5 {[%emt 0:00:45]} Ne5 {[%emt 0:00:41]} 23. Qe3 {[%emt 0:04:37]} Bd7 {[%emt 0:05:01]} 24. Bc3 {[%emt 0:01:02]} Qe7 {[%emt 0:01:05]} 25. Nf4 {[%emt 0:02:27]} f6 {[%emt 0:00:37]} 26. Rd4 {[%emt 0:01:30]} Bc6 {[%emt 0:00:21]} 27. Ne6 {[%emt 0:02:48]} Rxd4 {[%emt 0:00:19]} 28. Bxd4 {[%emt 0:00:20]} Nd3 {[%emt 0:01:01]} 29. Bxc6 {[%emt 0:00:43]} bxc6 {[%emt 0:00:06]} 30. Rf1 {[%emt 0:00:02]} Nd5 {[%emt 0:00:33]} 31. Qg3 {[%emt 0:00:51]} c5 {[%emt 0:00:59]} 32. Ba1 {[%emt 0:00:05]} g5 {[%emt 0:00:35]} 33. h4 {[%emt 0:01:03]} N3f4 {[%emt 0:00:17]} 34. Re1 {[%emt 0:00:16]} h6 {[%emt 0:00:37]} 35. Qh2 {[%emt 0:00:40]} c3 {[%emt 0:00:37]} 36. Qc2 {[%emt 0:00:34]} Qf7 {[%emt 0:00:24]} 37. Qb3 {[%emt 0:00:31]} Nxe6 {[%emt 0:00:36]} 38. Qxd5 {[%emt 0:00:20]} Ng7 {[%emt 0:00:26]} 39. Rxe8+ {[%emt 0:00:51]} Nxe8 {[%emt 0:00:03]} 40. Qxc5 {[%emt 0:00:16]} Qxa2 {[%emt 0:00:51]} 41. Bxc3 {[%emt 0:30:09]} Qb1+ {[%emt 0:09:01]} 42. Kf2 {[%emt 0:00:00]} Qe4 {[%emt 0:10:53]} 43. hxg5 {[%emt 0:00:00]} hxg5 {[%emt 0:01:12]} 44. Qc8 {[%emt 0:00:00]} Kf7 {[%emt 0:04:33]} 45. Qd7+ {[%emt 0:00:00]} Qe7 {[%emt 0:00:13]} 46. Qd5+ {[%emt 0:00:00]} Kg7 {[%emt 0:01:30]} 47. Kf3 {[%emt 0:00:00]} Qc7 {[%emt 0:01:35]} 48. Qd4 {[%emt 0:00:00]} Qc6+ {[%emt 0:01:37]} 49. Ke2 {[%emt 0:00:00]} Nc7 {[%emt 0:00:33]} 50. Bb2 {[%emt 0:00:00]} Nb5 {[%emt 0:02:34]} 51. Qe3 {[%emt 0:00:00]} Kf7 {[%emt 0:01:27]} 52. Qb3+ {[%emt 0:00:00]} Kg7 {[%emt 0:00:08]} 53. Qe3 {[%emt 0:00:00]} Kf7 {[%emt 0:00:03]} 54. Qb3+ {[%emt 0:00:00]} Ke7 {[%emt 0:01:07]} 55. Qe3+ {[%emt 0:00:00]} Kd7 {[%emt 0:00:28]} 56. Qd3+ {[%emt 0:00:00]} Ke8 {[%emt 0:01:16]} 57. Bxf6 {[%emt 0:00:00]} Qg2+ {[%emt 0:00:30]} 58. Ke1 {[%emt 0:00:00]} Qg1+ {[%emt 0:00:30]} 59. Kd2 {[%emt 0:00:00]} Qf2+ {[%emt 0:00:30]} 60. Qe2+ {[%emt 0:00:48]} Qxe2+ {[%emt 0:00:04]} 61. Kxe2 {[%emt 0:00:16]} a5 {[%emt 0:00:58]} 62. Kd3 {[%emt 0:00:33]} a4 {[%emt 0:00:21]} 63. Bxg5 {[%emt 0:00:22]} Kf7 {[%emt 0:00:17]} 64. Kc4 {[%emt 0:01:17]} a3 {[%emt 0:00:24]} 65. Bc1 {[%emt 0:01:23]} Nd6+ {[%emt 0:00:57]} 66. Kd5 {[%emt 0:00:22]} Ne8 {[%emt 0:00:31]} 67. g5 {[%emt 0:00:28]} Ng7 {[%emt 0:00:28]} 68. Ke5 {[%emt 0:00:22]} a2 {[%emt 0:00:31]} 69. g6+ {[%emt 0:01:23]} Kg8 {[%emt 0:00:27]} 70. Bb2 {[%emt 0:00:08]} Nh5 {[%emt 0:00:33]} 71. f6 {[%emt 0:00:20]} Kh8 {[%emt 0:00:29]} 72. Ke6 {[%emt 0:01:06]} Ng7+ {[%emt 0:00:31]} 73. Kf7 {[%emt 0:00:18]} 1-0

[Event "44th Chess Olympiad Open 2022"]
[Site "Chennai"]
[Date "2022.08.09"]
[Round "11.35"]
[White "Lee, Jun Hyeok"]
[Black "Fluvia Poyatos, Jordi"]
[Result "1/2-1/2"]
[ECO "B13"]
[WhiteElo "2390"]
[BlackElo "2451"]
[Annotator "RC"]
[PlyCount "120"]
[EventDate "2022.07.29"]
[EventType "team-tourn"]
[EventCountry "IND"]
[SourceTitle "playchess.com"]
[Source "ChessBase"]
[SourceQuality "1"]
[WhiteTeam "Korea"]
[BlackTeam "Andorra"]
[WhiteTeamCountry "KOR"]
[BlackTeamCountry "AND"]
[TimeControl "40/5400+30:1800+30"]

1. e4 {[%emt 0:00:12]} c6 {[%emt 0:00:11]} 2. d4 {[%emt 0:00:14]} d5 {[%emt 0:00:06]} 3. exd5 {[%emt 0:00:14]} cxd5 {[%emt 0:00:15]} 4. Bd3 {[%emt 0:00:06]} Nc6 {[%emt 0:00:46]} 5. c3 {[%emt 0:00:10]} Nf6 {[%emt 0:00:17]} 6. Bf4 {[%emt 0:00:25]} g6 {[%emt 0:01:06]} 7. Nd2 {[%emt 0:01:10]} Bf5 {[%emt 0:02:04]} 8. Bxf5 {[%emt 0:01:06]} gxf5 {[%emt 0:00:08]} 9. Nh3 {[%emt 0:01:05]} e6 {[%emt 0:03:33]} 10. Qe2 {[%emt 0:07:34]} Rg8 {[%emt 0:06:40]} 11. g3 {[%emt 0:01:19]} Bd6 {[%emt 0:04:38]} 12. O-O-O {[%emt 0:04:44]} Qc7 {[%emt 0:05:21]} 13. Nb3 {[%emt 0:02:26]} O-O-O {[%emt 0:07:14]} 14. Kb1 {[%emt 0:01:25]} Kb8 {[%emt 0:07:43]} 15. Nc5 {[%emt 0:06:45]} Ka8 {[%emt 0:14:35]} 16. Nd3 {[%emt 0:08:08]} Bxf4 {[%emt 0:09:46]} 17. Nhxf4 {[%emt 0:00:23]} Rc8 {[%emt 0:01:20]} 18. f3 {[%emt 0:10:42]} Ne8 {[%emt 0:13:30]} 19. Qg2 {[%emt 0:05:25]} Nd6 {[%emt 0:02:31]} 20. Qh3 {[%emt 0:01:52]} Nc4 {[%emt 0:00:48]} 21. Rhe1 {[%emt 0:00:32]} h6 {[%emt 0:04:10]} 22. Re2 {[%emt 0:00:28]} Rh8 {[%emt 0:00:13]} 23. Qh4 {[%emt 0:05:21]} Qd8 {[%emt 0:01:09]} 24. Qxd8 {[%emt 0:02:00]} Rhxd8 {[%emt 0:00:15]} 25. h3 {[%emt 0:01:07]} Nd6 {[%emt 0:01:33]} 26. g4 {[%emt 0:04:22]} Rg8 {[%emt 0:00:42]} 27. Rg1 {[%emt 0:00:50]} Kb8 {[%emt 0:01:53]} 28. Reg2 {[%emt 0:04:53]} Ne7 {[%emt 0:01:07]} 29. g5 {[%emt 0:05:59]} hxg5 {[%emt 0:01:23]} 30. Rxg5 {[%emt 0:00:03]} Rxg5 {[%emt 0:00:23]} 31. Rxg5 {[%emt 0:00:41]} Rg8 {[%emt 0:00:39]} 32. Rxg8+ {[%emt 0:03:57]} Nxg8 {[%emt 0:00:05]} 33. Kc2 {[%emt 0:00:28]} Kc7 {[%emt 0:00:08]} 34. h4 {[%emt 0:00:39]} Nh6 {[%emt 0:02:18]} 35. Ne5 {[%emt 0:04:44]} Ne8 {[%emt 0:01:09]} 36. b3 {[%emt 0:06:29]} f6 {[%emt 0:04:13]} 37. Ned3 {[%emt 0:00:45]} Kd6 {[%emt 0:01:15]} 38. c4 {[%emt 0:01:15]} dxc4 {[%emt 0:01:37]} 39. bxc4 {[%emt 0:00:04]} Nc7 {[%emt 0:00:40]} 40. Kc3 {[%emt 0:02:46]} Nf7 {[%emt 0:01:29]} 41. c5+ {[%emt 0:10:20]} Kd7 {[%emt 0:03:43]} 42. Kc4 {[%emt 0:20:30]} b5+ {[%emt 0:03:12]} 43. Kb4 {[%emt 0:01:21]} e5 {[%emt 0:03:53]} 44. Nh5 {[%emt 0:00:41]} exd4 {[%emt 0:01:31]} 45. Nxf6+ {[%emt 0:00:47]} Kc6 {[%emt 0:00:37]} 46. Ka5 {[%emt 0:02:22]} Ne6 {[%emt 0:00:52]} 47. Ng8 {[%emt 0:00:51]} Nxc5 {[%emt 0:03:52]} 48. Ne7+ {[%emt 0:00:03]} Kd6 {[%emt 0:00:17]} 49. Nxf5+ {[%emt 0:00:13]} Kd5 {[%emt 0:00:07]} 50. Nxc5 {[%emt 0:01:34]} Kxc5 {[%emt 0:00:05]} 51. Nxd4 {[%emt 0:02:36]} Kxd4 {[%emt 0:00:06]} 52. Kxb5 {[%emt 0:00:02]} Kd5 {[%emt 0:00:18]} 53. a4 {[%emt 0:00:59]} Nh6 {[%emt 0:00:47]} 54. h5 {[%emt 0:00:44]} Nf5 {[%emt 0:00:06]} 55. f4 {[%emt 0:01:04]} Nh6 {[%emt 0:00:05]} 56. Ka6 {[%emt 0:01:02]} Kc6 {[%emt 0:00:11]} 57. Kxa7 {[%emt 0:00:03]} Kc7 {[%emt 0:00:05]} 58. Ka6 {[%emt 0:00:29]} Kc6 {[%emt 0:00:06]} 59. Ka5 {[%emt 0:00:02]} Kc5 {[%emt 0:00:05]} 60. Ka6 {[%emt 0:00:05]} Kc6 {[%emt 0:00:12]} 1/2-1/2